[Event "*** Titled Tuesday Blitz"]
[Site "Chess.com"]
[Date "2020.05.05"]
[Round "9"]
[White "Sjakkerntobi"]
[Black "guillembaches"]
[Result "1-0"]
[WhiteElo "2262"]
[BlackElo "2409"]
[TimeControl "180+1"]
[EndTime "11:48:13 PDT"]
[Termination "Sjakkerntobi won by resignation"]

1. e4 {[%clk 0:03:00.9]} 1... c5 {[%clk 0:03:00]} 2. Nf3 {[%clk 0:03:01]} 2...
d6 {[%clk 0:03:00.5]} 3. d4 {[%clk 0:03:01.7]} 3... cxd4 {[%clk 0:03:01.4]} 4.
Qxd4 {[%clk 0:03:02.4]} 4... Nc6 {[%clk 0:03:00.7]} 5. Bb5 {[%clk 0:03:02.1]}
5... a6 {[%clk 0:03:01.2]} 6. Bxc6+ {[%clk 0:03:01.7]} 6... bxc6 {[%clk
0:03:02.1]} 7. Nc3 {[%clk 0:03:01.2]} 7... e5 {[%clk 0:03:01]} 8. Qd3 {[%clk
0:03:00.7]} 8... Be7 {[%clk 0:03:01]} 9. Nd2 {[%clk 0:02:59.3]} 9... Be6 {[%clk
0:02:54.6]} 10. Nc4 {[%clk 0:02:59.2]} 10... Nf6 {[%clk 0:02:49.4]} 11. Bg5
{[%clk 0:02:55.2]} 11... Qc7 {[%clk 0:02:31]} 12. Bxf6 {[%clk 0:02:48.8]} 12...
gxf6 {[%clk 0:02:31.3]} 13. Ne3 {[%clk 0:02:48.5]} 13... Rd8 {[%clk 0:02:22.4]}
14. O-O-O {[%clk 0:02:46.3]} 14... h5 {[%clk 0:02:15.6]} 15. Rhf1 {[%clk
0:02:44.4]} 15... Bf8 {[%clk 0:02:03.1]} 16. f4 {[%clk 0:02:42.3]} 16... Bh6
{[%clk 0:01:59.1]} 17. Kb1 {[%clk 0:02:37.1]} 17... Bxf4 {[%clk 0:01:52.8]} 18.
g3 {[%clk 0:02:36.5]} 18... Bg5 {[%clk 0:01:27.1]} 19. Nf5 {[%clk 0:02:34.1]}
19... Bxf5 {[%clk 0:01:22.5]} 20. Rxf5 {[%clk 0:02:35]} 20... h4 {[%clk
0:01:22.4]} 21. g4 {[%clk 0:02:19.6]} 21... Ke7 {[%clk 0:01:16]} 22. h3 {[%clk
0:02:16.7]} 22... a5 {[%clk 0:01:12.6]} 23. Rdf1 {[%clk 0:02:13.8]} 23... Rdf8
{[%clk 0:00:54.7]} 24. Qc4 {[%clk 0:02:10.8]} 24... Qb6 {[%clk 0:00:50.8]} 25.
Qe2 {[%clk 0:01:52.6]} 25... Bf4 {[%clk 0:00:48.6]} 26. Qd3 {[%clk 0:01:43.5]}
26... Rb8 {[%clk 0:00:46.5]} 27. b3 {[%clk 0:01:43.4]} 27... Qb4 {[%clk
0:00:43.6]} 28. Ne2 {[%clk 0:01:42.2]} 28... Bg5 {[%clk 0:00:42.7]} 29. Qf3
{[%clk 0:01:31.8]} 29... Rh7 {[%clk 0:00:34]} 30. Qc3 {[%clk 0:01:22]} 30...
Qxc3 {[%clk 0:00:30.1]} 31. Nxc3 {[%clk 0:01:22.9]} 31... Rb4 {[%clk 0:00:29.9]}
32. a3 {[%clk 0:01:19.2]} 32... Rd4 {[%clk 0:00:28.3]} 33. Rd1 {[%clk
0:01:19.4]} 33... Rxd1+ {[%clk 0:00:24.5]} 34. Nxd1 {[%clk 0:01:20.3]} 34... Rh8
{[%clk 0:00:24.6]} 35. c4 {[%clk 0:01:19.4]} 35... Rb8 {[%clk 0:00:20.7]} 36.
Kc2 {[%clk 0:01:19.5]} 36... c5 {[%clk 0:00:20.1]} 37. Nc3 {[%clk 0:01:18.5]}
37... Ke6 {[%clk 0:00:18.1]} 38. a4 {[%clk 0:01:13.7]} 38... Rb4 {[%clk
0:00:16.1]} 39. Rf1 {[%clk 0:01:12.3]} 39... Rb8 {[%clk 0:00:15.5]} 40. Rd1
{[%clk 0:01:10.6]} 40... Be3 {[%clk 0:00:15.3]} 41. Nb5 {[%clk 0:01:07.9]} 41...
Bd4 {[%clk 0:00:14.8]} 42. Rf1 {[%clk 0:01:08.1]} 42... Rg8 {[%clk 0:00:14.3]}
43. Rf5 {[%clk 0:01:07.8]} 43... Rg5 {[%clk 0:00:14.2]} 44. Kd3 {[%clk
0:01:06.8]} 44... Rxf5 {[%clk 0:00:14.1]} 45. exf5+ {[%clk 0:01:07.7]} 45... Ke7
{[%clk 0:00:14.3]} 46. Ke4 {[%clk 0:01:08.6]} 46... Bb2 {[%clk 0:00:13.4]} 47.
Kd5 {[%clk 0:01:08.7]} 47... Bc1 {[%clk 0:00:13.5]} 48. Na7 {[%clk 0:01:08.6]}
48... Kd7 {[%clk 0:00:13.6]} 49. Nc6 {[%clk 0:01:08.7]} 49... Bd2 {[%clk
0:00:13]} 50. Na7 {[%clk 0:01:08.2]} 50... Bb4 {[%clk 0:00:13.2]} 51. Nb5 {[%clk
0:01:09.1]} 51... Ke7 {[%clk 0:00:13.4]} 52. Kc6 {[%clk 0:01:03.8]} 52... e4
{[%clk 0:00:13.2]} 53. Nc7 {[%clk 0:01:04.2]} 53... e3 {[%clk 0:00:13.4]} 54.
Nd5+ {[%clk 0:01:05.1]} 54... Kf8 {[%clk 0:00:13.3]} 55. Nxe3 {[%clk 0:01:06]}
55... Kg7 {[%clk 0:00:13.8]} 56. Nd5 {[%clk 0:01:06.9]} 56... Kh6 {[%clk
0:00:14.2]} 57. Nxf6 {[%clk 0:01:03.9]} 57... Kg5 {[%clk 0:00:14.3]} 58. Nd5
{[%clk 0:01:04.3]} 58... f6 {[%clk 0:00:14]} 59. Kd7 {[%clk 0:01:04.4]} 59...
Ba3 {[%clk 0:00:10.9]} 60. Ke6 {[%clk 0:01:04.3]} 60... Bb2 {[%clk 0:00:10.8]}
61. Kxd6 {[%clk 0:01:02.1]} 61... Bd4 {[%clk 0:00:11.1]} 62. Kc6 {[%clk
0:01:00.1]} 1-0

[Event "*** Titled Tuesday Blitz"]
[Site "Chess.com"]
[Date "2020.05.05"]
[Round "9"]
[White "ketster"]
[Black "plumalka"]
[Result "1-0"]
[WhiteElo "2282"]
[BlackElo "2423"]
[TimeControl "180+1"]
[EndTime "11:48:15 PDT"]
[Termination "ketster won on time"]

1. d4 {[%clk 0:02:59.9]} 1... Nf6 {[%clk 0:02:58.4]} 2. c4 {[%clk 0:02:58.9]}
2... c5 {[%clk 0:02:58.6]} 3. d5 {[%clk 0:02:47]} 3... b5 {[%clk 0:02:58.9]} 4.
Nd2 {[%clk 0:02:45.5]} 4... bxc4 {[%clk 0:02:45.3]} 5. e4 {[%clk 0:02:43.4]}
5... d6 {[%clk 0:02:41.5]} 6. Bxc4 {[%clk 0:02:42.7]} 6... g6 {[%clk 0:02:41.8]}
7. b3 {[%clk 0:02:41.4]} 7... Bg7 {[%clk 0:02:41.6]} 8. Bb2 {[%clk 0:02:41.3]}
8... O-O {[%clk 0:02:42.3]} 9. Ne2 {[%clk 0:02:39.2]} 9... Ba6 {[%clk
0:02:42.7]} 10. O-O {[%clk 0:02:38.1]} 10... Bxc4 {[%clk 0:02:42.4]} 11. bxc4
{[%clk 0:02:36.8]} 11... Nbd7 {[%clk 0:02:39]} 12. Qc2 {[%clk 0:02:32]} 12...
Qa5 {[%clk 0:02:36.4]} 13. Bc3 {[%clk 0:02:28]} 13... Qa6 {[%clk 0:02:36]} 14.
Rab1 {[%clk 0:02:20.5]} 14... Nb6 {[%clk 0:02:33.6]} 15. Ba1 {[%clk 0:02:12.6]}
15... Rab8 {[%clk 0:02:33.2]} 16. f4 {[%clk 0:02:05.4]} 16... Qa4 {[%clk
0:02:23.3]} 17. Rb3 {[%clk 0:02:00.7]} 17... h5 {[%clk 0:02:11.3]} 18. h3 {[%clk
0:01:57.2]} 18... Qd7 {[%clk 0:01:46.9]} 19. e5 {[%clk 0:01:52.4]} 19... Nh7
{[%clk 0:01:39.2]} 20. e6 {[%clk 0:01:17.2]} 20... fxe6 {[%clk 0:01:40.1]} 21.
Qxg6 {[%clk 0:01:15.5]} 21... Nf6 {[%clk 0:01:38.9]} 22. Ne4 {[%clk 0:00:49]}
22... exd5 {[%clk 0:01:35.1]} 23. Rg3 {[%clk 0:00:48.1]} 23... e5 {[%clk
0:01:05.5]} 24. Nxf6+ {[%clk 0:00:44]} 24... Rxf6 {[%clk 0:01:05.1]} 25. Qxf6
{[%clk 0:00:43.9]} 25... d4 {[%clk 0:00:58.9]} 26. fxe5 {[%clk 0:00:37.8]} 26...
dxe5 {[%clk 0:00:56.7]} 27. Qxe5 {[%clk 0:00:37.5]} 27... Rd8 {[%clk 0:00:45.7]}
28. Qxh5 {[%clk 0:00:36.3]} 28... Nxc4 {[%clk 0:00:42.8]} 29. Nf4 {[%clk
0:00:31.5]} 29... Ne3 {[%clk 0:00:30.5]} 30. Rff3 {[%clk 0:00:21.9]} 30... Nf5
{[%clk 0:00:16.1]} 31. Rg5 {[%clk 0:00:18.3]} 31... Rf8 {[%clk 0:00:15.6]} 32.
Ng6 {[%clk 0:00:15.8]} 32... Re8 {[%clk 0:00:09.8]} 33. Rgxf5 {[%clk 0:00:13.9]}
33... Re1+ {[%clk 0:00:09.6]} 34. Rf1 {[%clk 0:00:13.1]} 34... Re8 {[%clk
0:00:06.5]} 35. Nh4 {[%clk 0:00:08.9]} 35... Re7 {[%clk 0:00:01.8]} 36. Qg6
{[%clk 0:00:08]} 1-0

[Event "*** Titled Tuesday Blitz"]
[Site "Chess.com"]
[Date "2020.05.05"]
[Round "9"]
[White "manuellarrea"]
[Black "m-garcett"]
[Result "0-1"]
[WhiteElo "2184"]
[BlackElo "2051"]
[TimeControl "180+1"]
[EndTime "11:48:17 PDT"]
[Termination "m-garcett won on time"]

1. e4 {[%clk 0:03:00.9]} 1... c5 {[%clk 0:02:59.5]} 2. Nf3 {[%clk 0:03:00.8]}
2... d6 {[%clk 0:02:59.5]} 3. d4 {[%clk 0:03:01.2]} 3... cxd4 {[%clk 0:03:00]}
4. Nxd4 {[%clk 0:03:01.7]} 4... Nf6 {[%clk 0:03:00.4]} 5. Nc3 {[%clk 0:03:01.9]}
5... a6 {[%clk 0:03:00.9]} 6. Bg5 {[%clk 0:03:01.7]} 6... e6 {[%clk 0:03:00.6]}
7. f4 {[%clk 0:03:02]} 7... h6 {[%clk 0:03:00.7]} 8. Bh4 {[%clk 0:02:59.1]} 8...
Qb6 {[%clk 0:03:00.8]} 9. Qd2 {[%clk 0:02:58]} 9... Qxb2 {[%clk 0:03:00.3]} 10.
Rb1 {[%clk 0:02:57.5]} 10... Qa3 {[%clk 0:03:00]} 11. e5 {[%clk 0:02:57.3]}
11... dxe5 {[%clk 0:02:55.7]} 12. fxe5 {[%clk 0:02:56.2]} 12... Nfd7 {[%clk
0:02:55.9]} 13. Rb3 {[%clk 0:02:54.8]} 13... Qa5 {[%clk 0:02:43.7]} 14. Be2
{[%clk 0:02:27.3]} 14... Bc5 {[%clk 0:02:41]} 15. Bf2 {[%clk 0:02:00.9]} 15...
O-O {[%clk 0:02:36.3]} 16. O-O {[%clk 0:01:45.9]} 16... Nxe5 {[%clk 0:02:30.6]}
17. Kh1 {[%clk 0:01:41.6]} 17... Nbc6 {[%clk 0:02:09.5]} 18. Nxc6 {[%clk
0:01:29.9]} 18... Nxc6 {[%clk 0:02:10.4]} 19. Bxc5 {[%clk 0:01:26.5]} 19... Qxc5
{[%clk 0:02:11.3]} 20. Ne4 {[%clk 0:01:25.4]} 20... Qd4 {[%clk 0:01:58.2]} 21.
Nf6+ {[%clk 0:01:01.8]} 21... Kh8 {[%clk 0:01:39.6]} 22. Rd3 {[%clk 0:00:56]}
22... Qe5 {[%clk 0:01:30.8]} 23. Ng4 {[%clk 0:00:51.6]} 23... Qg5 {[%clk
0:01:28]} 24. Qe1 {[%clk 0:00:41.8]} 24... e5 {[%clk 0:01:22.5]} 25. Rg3 {[%clk
0:00:34.8]} 25... Bxg4 {[%clk 0:01:08.1]} 26. Rxg4 {[%clk 0:00:32]} 26... Qe7
{[%clk 0:01:06.5]} 27. Qg3 {[%clk 0:00:28.3]} 27... f5 {[%clk 0:01:00.2]} 28.
Rg6 {[%clk 0:00:24.7]} 28... Nd4 {[%clk 0:00:48.2]} 29. Bd3 {[%clk 0:00:21.3]}
29... e4 {[%clk 0:00:45.5]} 30. Bc4 {[%clk 0:00:20.5]} 30... Rf6 {[%clk
0:00:42.9]} 31. Rxf6 {[%clk 0:00:16.3]} 31... Qxf6 {[%clk 0:00:43.8]} 32. c3
{[%clk 0:00:15.4]} 32... Nc6 {[%clk 0:00:40.7]} 33. Qc7 {[%clk 0:00:13.5]} 33...
Qe7 {[%clk 0:00:18.1]} 34. Qb6 {[%clk 0:00:09.9]} 34... Rf8 {[%clk 0:00:14]} 35.
g3 {[%clk 0:00:08]} 35... Ne5 {[%clk 0:00:13.3]} 36. Be2 {[%clk 0:00:06.3]}
36... Nd3 {[%clk 0:00:11.6]} 37. Bxd3 {[%clk 0:00:05.3]} 37... exd3 {[%clk
0:00:12.5]} 38. Qd4 {[%clk 0:00:05.2]} 38... Rd8 {[%clk 0:00:09.7]} 39. Qf4
{[%clk 0:00:04.5]} 39... Qe4+ {[%clk 0:00:09.1]} 40. Qxe4 {[%clk 0:00:03.8]}
40... fxe4 {[%clk 0:00:10]} 0-1

[Event "*** Titled Tuesday Blitz"]
[Site "Chess.com"]
[Date "2020.05.05"]
[Round "9"]
[White "rasmussvane"]
[Black "Paladin61"]
[Result "1-0"]
[WhiteElo "2870"]
[BlackElo "2671"]
[TimeControl "180+1"]
[EndTime "11:48:19 PDT"]
[Termination "rasmussvane won on time"]

1. Nf3 {[%clk 0:03:00.9]} 1... Nf6 {[%clk 0:03:00]} 2. g3 {[%clk 0:03:00.8]}
2... g6 {[%clk 0:03:00.9]} 3. Bg2 {[%clk 0:02:57.7]} 3... Bg7 {[%clk 0:03:01.8]}
4. O-O {[%clk 0:02:58.1]} 4... O-O {[%clk 0:03:01.5]} 5. d4 {[%clk 0:02:58.6]}
5... d6 {[%clk 0:03:01.5]} 6. Re1 {[%clk 0:02:58]} 6... Nbd7 {[%clk 0:02:59.6]}
7. e4 {[%clk 0:02:57.5]} 7... e5 {[%clk 0:02:59.4]} 8. Nc3 {[%clk 0:02:58]} 8...
b6 {[%clk 0:02:37.7]} 9. a4 {[%clk 0:02:48.7]} 9... a6 {[%clk 0:02:37.3]} 10. b3
{[%clk 0:02:48.8]} 10... Bb7 {[%clk 0:02:34.8]} 11. dxe5 {[%clk 0:02:42.5]}
11... dxe5 {[%clk 0:02:26]} 12. Ba3 {[%clk 0:02:41.9]} 12... Re8 {[%clk
0:02:25.8]} 13. Qe2 {[%clk 0:02:42.1]} 13... Bf8 {[%clk 0:02:22.1]} 14. Bxf8
{[%clk 0:02:37.1]} 14... Nxf8 {[%clk 0:02:21.2]} 15. Rad1 {[%clk 0:02:37.9]}
15... Qe7 {[%clk 0:02:19.5]} 16. Nd5 {[%clk 0:02:38.4]} 16... Nxd5 {[%clk
0:01:48.3]} 17. exd5 {[%clk 0:02:39.3]} 17... e4 {[%clk 0:01:36.1]} 18. c4
{[%clk 0:01:36.4]} 18... Rad8 {[%clk 0:01:14.5]} 19. Nd4 {[%clk 0:01:34.4]}
19... f5 {[%clk 0:01:12.1]} 20. Qe3 {[%clk 0:01:32.9]} 20... Qf6 {[%clk
0:01:06.8]} 21. h4 {[%clk 0:01:31.4]} 21... Re7 {[%clk 0:00:55.8]} 22. b4 {[%clk
0:01:30.1]} 22... Red7 {[%clk 0:00:49.7]} 23. b5 {[%clk 0:01:19.6]} 23... a5
{[%clk 0:00:47]} 24. Rd2 {[%clk 0:01:14.9]} 24... Rf7 {[%clk 0:00:42.3]} 25. Qf4
{[%clk 0:01:14.7]} 25... Re8 {[%clk 0:00:40]} 26. f3 {[%clk 0:00:56.3]} 26...
Qe5 {[%clk 0:00:27.1]} 27. Qxe5 {[%clk 0:00:47]} 27... Rxe5 {[%clk 0:00:26.7]}
28. fxe4 {[%clk 0:00:47.4]} 28... fxe4 {[%clk 0:00:26.7]} 29. Rxe4 {[%clk
0:00:46.1]} 29... Rxe4 {[%clk 0:00:26.1]} 30. Bxe4 {[%clk 0:00:47]} 30... Nd7
{[%clk 0:00:23.5]} 31. Ne6 {[%clk 0:00:21.6]} 31... Ne5 {[%clk 0:00:19.6]} 32.
d6 {[%clk 0:00:21.9]} 32... cxd6 {[%clk 0:00:14.9]} 33. Rxd6 {[%clk 0:00:18.1]}
33... h6 {[%clk 0:00:14.3]} 34. Bxb7 {[%clk 0:00:10.4]} 34... Rxb7 {[%clk
0:00:14.3]} 35. c5 {[%clk 0:00:10.7]} 35... bxc5 {[%clk 0:00:12.8]} 36. Nxc5
{[%clk 0:00:11.6]} 36... Rc7 {[%clk 0:00:11.7]} 37. b6 {[%clk 0:00:08.9]} 37...
Rxc5 {[%clk 0:00:06.8]} 38. b7 {[%clk 0:00:09.3]} 38... Rc1+ {[%clk 0:00:05.1]}
39. Kg2 {[%clk 0:00:08.9]} 39... Rc2+ {[%clk 0:00:05.2]} 40. Kh3 {[%clk
0:00:08.7]} 40... Rb2 {[%clk 0:00:05.3]} 41. Rd8+ {[%clk 0:00:08.5]} 41... Kf7
{[%clk 0:00:05.1]} 42. b8=Q {[%clk 0:00:09.4]} 42... Rxb8 {[%clk 0:00:04.6]} 43.
Rxb8 {[%clk 0:00:10.3]} 43... Nc4 {[%clk 0:00:03.7]} 44. Rb5 {[%clk 0:00:09.6]}
44... Kf6 {[%clk 0:00:03.3]} 45. Rc5 {[%clk 0:00:09.9]} 1-0

[Event "*** Titled Tuesday Blitz"]
[Site "Chess.com"]
[Date "2020.05.05"]
[Round "9"]
[White "vwnv7"]
[Black "RubensCezila"]
[Result "1-0"]
[WhiteElo "2345"]
[BlackElo "2469"]
[TimeControl "180+1"]
[EndTime "11:48:19 PDT"]
[Termination "vwnv7 won by resignation"]

1. c4 {[%clk 0:03:00.9]} 1... Nf6 {[%clk 0:03:00]} 2. Nf3 {[%clk 0:02:59.1]}
2... g6 {[%clk 0:03:00.2]} 3. g3 {[%clk 0:02:58.4]} 3... Bg7 {[%clk 0:03:00.6]}
4. Bg2 {[%clk 0:02:58.9]} 4... O-O {[%clk 0:03:01]} 5. d4 {[%clk 0:02:58]} 5...
d6 {[%clk 0:03:00.2]} 6. Nc3 {[%clk 0:02:56.6]} 6... Nc6 {[%clk 0:02:59.8]} 7.
O-O {[%clk 0:02:55.9]} 7... a6 {[%clk 0:03:00.1]} 8. Bf4 {[%clk 0:02:55.2]} 8...
Nh5 {[%clk 0:02:50.2]} 9. Bg5 {[%clk 0:02:47.3]} 9... h6 {[%clk 0:02:49.9]} 10.
Be3 {[%clk 0:02:46.9]} 10... e5 {[%clk 0:02:49.2]} 11. Qd2 {[%clk 0:02:40.1]}
11... exd4 {[%clk 0:02:39.9]} 12. Nxd4 {[%clk 0:02:38.5]} 12... Ne5 {[%clk
0:02:36.7]} 13. b3 {[%clk 0:02:33.5]} 13... Ng4 {[%clk 0:02:35.4]} 14. Rad1
{[%clk 0:02:27.8]} 14... Nxe3 {[%clk 0:02:27.7]} 15. Qxe3 {[%clk 0:02:27.4]}
15... Re8 {[%clk 0:02:27.8]} 16. Qd2 {[%clk 0:02:26.3]} 16... c6 {[%clk
0:02:19.9]} 17. e4 {[%clk 0:02:19.2]} 17... Bg4 {[%clk 0:02:15.7]} 18. f3 {[%clk
0:02:16.5]} 18... Bd7 {[%clk 0:02:12.3]} 19. Nde2 {[%clk 0:02:13.4]} 19... Qa5
{[%clk 0:01:59.8]} 20. g4 {[%clk 0:02:06.7]} 20... Nf4 {[%clk 0:01:34.3]} 21.
Qxf4 {[%clk 0:02:03.1]} 21... Bxc3 {[%clk 0:01:32.9]} 22. Nxc3 {[%clk
0:02:01.4]} 22... Qxc3 {[%clk 0:01:33.8]} 23. Rxd6 {[%clk 0:02:00.6]} 23... Be6
{[%clk 0:01:33.1]} 24. Qxh6 {[%clk 0:01:58.7]} 24... Qc2 {[%clk 0:01:24.5]} 25.
Rd2 {[%clk 0:01:52.2]} 25... Qc3 {[%clk 0:01:23.5]} 26. Rfd1 {[%clk 0:01:50.7]}
26... a5 {[%clk 0:01:23.8]} 27. h4 {[%clk 0:01:49.1]} 27... a4 {[%clk 0:01:23]}
28. h5 {[%clk 0:01:49.1]} 28... gxh5 {[%clk 0:01:22.2]} 29. Qxh5 {[%clk
0:01:41.2]} 29... Qe3+ {[%clk 0:01:17.4]} 30. Kf1 {[%clk 0:01:27.6]} 30... axb3
{[%clk 0:01:11.2]} 31. axb3 {[%clk 0:01:27.7]} 31... Ra1 {[%clk 0:00:55.6]} 32.
Rxa1 {[%clk 0:01:23.1]} 32... Qxd2 {[%clk 0:00:55.6]} 33. Qa5 {[%clk 0:00:59.4]}
33... Qd3+ {[%clk 0:00:50.6]} 34. Kf2 {[%clk 0:00:57.9]} 34... Qxb3 {[%clk
0:00:45]} 35. Qg5+ {[%clk 0:00:43.1]} 35... Kf8 {[%clk 0:00:41.4]} 36. Rh1
{[%clk 0:00:36.2]} 36... Qb2+ {[%clk 0:00:35.8]} 37. Kg3 {[%clk 0:00:35.7]}
37... Qg7 {[%clk 0:00:27.2]} 38. Qc5+ {[%clk 0:00:35.4]} 38... Kg8 {[%clk
0:00:27.7]} 39. Rh5 {[%clk 0:00:34.7]} 39... f6 {[%clk 0:00:28.1]} 40. Rh1
{[%clk 0:00:32.2]} 40... Qf7 {[%clk 0:00:25.3]} 41. Qd6 {[%clk 0:00:30.7]} 41...
Bxc4 {[%clk 0:00:22.5]} 42. Rh6 {[%clk 0:00:30.6]} 42... Be6 {[%clk 0:00:21.9]}
43. Qf4 {[%clk 0:00:29.6]} 43... Rf8 {[%clk 0:00:20.5]} 44. g5 {[%clk 0:00:29]}
44... Qg7 {[%clk 0:00:17]} 45. Rh5 {[%clk 0:00:27.8]} 45... f5 {[%clk 0:00:16]}
46. e5 {[%clk 0:00:27.1]} 46... Rd8 {[%clk 0:00:13.9]} 47. Rh6 {[%clk 0:00:27]}
47... Kf7 {[%clk 0:00:11.7]} 48. Rf6+ {[%clk 0:00:26.4]} 48... Ke7 {[%clk
0:00:11.7]} 49. Qb4+ {[%clk 0:00:26]} 1-0

[Event "*** Titled Tuesday Blitz"]
[Site "Chess.com"]
[Date "2020.05.05"]
[Round "9"]
[White "MasterKroket"]
[Black "FeketeBarika"]
[Result "0-1"]
[WhiteElo "2419"]
[BlackElo "2314"]
[TimeControl "180+1"]
[EndTime "11:48:19 PDT"]
[Termination "FeketeBarika won by checkmate"]

1. d4 {[%clk 0:03:00.9]} 1... e6 {[%clk 0:03:00.9]} 2. c4 {[%clk 0:02:59.5]}
2... Nf6 {[%clk 0:03:00.2]} 3. Nf3 {[%clk 0:02:56.5]} 3... d5 {[%clk 0:03:01.1]}
4. Nc3 {[%clk 0:02:55.7]} 4... Be7 {[%clk 0:03:00.8]} 5. Bf4 {[%clk 0:02:56.2]}
5... O-O {[%clk 0:03:00.1]} 6. e3 {[%clk 0:02:56.8]} 6... Nbd7 {[%clk
0:03:00.1]} 7. c5 {[%clk 0:02:57]} 7... c6 {[%clk 0:02:59.5]} 8. h3 {[%clk
0:02:57.2]} 8... Re8 {[%clk 0:02:59.9]} 9. Bd3 {[%clk 0:02:55.1]} 9... Bxc5
{[%clk 0:02:59.4]} 10. dxc5 {[%clk 0:02:51.4]} 10... e5 {[%clk 0:02:59.3]} 11.
Bg5 {[%clk 0:02:51.2]} 11... e4 {[%clk 0:02:57.7]} 12. Nd4 {[%clk 0:02:36.7]}
12... exd3 {[%clk 0:02:36.3]} 13. b4 {[%clk 0:02:36.3]} 13... Ne5 {[%clk
0:02:33.6]} 14. O-O {[%clk 0:02:30.7]} 14... h6 {[%clk 0:02:33]} 15. Bh4 {[%clk
0:02:26.1]} 15... Bd7 {[%clk 0:02:25.5]} 16. Qd2 {[%clk 0:02:05.4]} 16... Ne4
{[%clk 0:02:19.9]} 17. Nxe4 {[%clk 0:02:04.9]} 17... Qxh4 {[%clk 0:02:18.4]} 18.
Nd6 {[%clk 0:02:04]} 18... Rf8 {[%clk 0:01:39.7]} 19. f4 {[%clk 0:01:59.2]}
19... Nc4 {[%clk 0:01:38.1]} 20. Qxd3 {[%clk 0:01:57.8]} 20... Nxd6 {[%clk
0:01:37.1]} 21. cxd6 {[%clk 0:01:57]} 21... Qf6 {[%clk 0:01:37.3]} 22. a3 {[%clk
0:01:36.8]} 22... Rfe8 {[%clk 0:01:35.3]} 23. Nf3 {[%clk 0:01:31.2]} 23... Qxd6
{[%clk 0:01:33.6]} 24. Ne5 {[%clk 0:01:28.1]} 24... f6 {[%clk 0:01:29]} 25. Ng4
{[%clk 0:01:16.4]} 25... Bxg4 {[%clk 0:01:26.9]} 26. hxg4 {[%clk 0:01:16.1]}
26... Qe6 {[%clk 0:01:26.8]} 27. Rae1 {[%clk 0:01:10.7]} 27... Qxg4 {[%clk
0:01:25.3]} 28. b5 {[%clk 0:01:10.9]} 28... Re4 {[%clk 0:01:10.6]} 29. bxc6
{[%clk 0:01:09.5]} 29... bxc6 {[%clk 0:01:11.5]} 30. Qa6 {[%clk 0:01:09.8]}
30... Qe6 {[%clk 0:01:10.4]} 31. Rf3 {[%clk 0:01:07.4]} 31... Re8 {[%clk
0:01:03.9]} 32. Kf2 {[%clk 0:01:07.8]} 32... d4 {[%clk 0:01:01.8]} 33. Rg3
{[%clk 0:01:00]} 33... dxe3+ {[%clk 0:01:01]} 34. Kg1 {[%clk 0:01:00.3]} 34...
Re7 {[%clk 0:00:52.9]} 35. Re2 {[%clk 0:00:57.5]} 35... f5 {[%clk 0:00:51.7]}
36. Qa5 {[%clk 0:00:43.8]} 36... Rxf4 {[%clk 0:00:47.6]} 37. Rgxe3 {[%clk
0:00:37.5]} 37... Re4 {[%clk 0:00:46.2]} 38. Rxe4 {[%clk 0:00:31]} 38... fxe4
{[%clk 0:00:45.5]} 39. Re3 {[%clk 0:00:28.7]} 39... Qd5 {[%clk 0:00:43.2]} 40.
Qc3 {[%clk 0:00:25.1]} 40... Kh7 {[%clk 0:00:39.4]} 41. Kh2 {[%clk 0:00:24.7]}
41... Re5 {[%clk 0:00:34.7]} 42. Kg1 {[%clk 0:00:20.3]} 42... c5 {[%clk
0:00:30.5]} 43. Rg3 {[%clk 0:00:19]} 43... Qd4+ {[%clk 0:00:29.7]} 44. Qxd4
{[%clk 0:00:18.2]} 44... cxd4 {[%clk 0:00:30.6]} 45. Kf2 {[%clk 0:00:17.7]}
45... e3+ {[%clk 0:00:20.4]} 46. Ke1 {[%clk 0:00:18.1]} 46... d3 {[%clk
0:00:20.1]} 47. Rg4 {[%clk 0:00:17.2]} 47... d2+ {[%clk 0:00:18.8]} 48. Ke2
{[%clk 0:00:17.6]} 48... Rd5 {[%clk 0:00:18.8]} 49. Rd4 {[%clk 0:00:17.7]} 49...
Rxd4 {[%clk 0:00:18.3]} 50. Kxe3 {[%clk 0:00:18.6]} 50... d1=Q {[%clk
0:00:18.2]} 51. g4 {[%clk 0:00:19.5]} 51... Qd3+ {[%clk 0:00:18.2]} 52. Kf2
{[%clk 0:00:20.2]} 52... Rf4+ {[%clk 0:00:18.2]} 53. Ke1 {[%clk 0:00:21.1]}
53... Re4+ {[%clk 0:00:17.7]} 54. Kf2 {[%clk 0:00:21]} 54... Re2+ {[%clk
0:00:18.5]} 55. Kg1 {[%clk 0:00:21.9]} 55... Qd1# {[%clk 0:00:19]} 0-1